fUST/lending_fUST_20240423
["ID","MTS","AMOUNT","RATE_DAILY","PERIOD"]
[323277199,1713865838300,-281.01822611,0.00021917,2]
[323277201,1713865838310,-500.0,0.00021917,2]
[323277204,1713865838319,-500.0,0.00021917,2]
[323277206,1713865838328,-500.0,0.00021917,2]
[323277208,1713865838337,-577.274938,0.00021917,2]
[323277210,1713865838346,-577.274938,0.00021917,2]
[323277212,1713865838355,-500.0,0.00021917,2]
[323277213,1713865838365,-500.0,0.00021917,2]
[323277216,1713865838374,-500.0,0.00021917,2]
[323277218,1713865838384,-500.0,0.00021917,2]
[323277220,1713865838393,-500.0,0.00021917,2]
[323277221,1713865838402,-252.16044463,0.00021917,2]
[323277223,1713865838411,-432.78748449,0.00021917,2]
[323277226,1713865838424,-67.21251551,0.00021917,2]
[323277228,1713865838433,-500.0,0.00021917,2]
[323277230,1713865838442,-867.89,0.00021917,2]
[323277232,1713865838451,-500.0,0.00021917,2]
[323277234,1713865838460,-500.0,0.00021917,2]
[323277236,1713865838469,-500.0,0.00021917,2]
[323277238,1713865838478,-500.0,0.00021917,2]
[323277240,1713865838487,-500.0,0.00021917,2]
[323277242,1713865838496,-500.0,0.00021917,2]
[323277244,1713865838505,-556.47430242,0.00021917,2]
[323277246,1713865838513,-151.0,0.00021917,2]
[323277248,1713865838522,-281.256493,0.00021917,2]
[323277250,1713865838531,-500.0,0.00021917,2]
[323277252,1713865838540,-500.0,0.00021917,2]
[323277254,1713865838549,-610.16,0.00021917,2]
[323277256,1713865838558,-500.0,0.00021917,2]
[323277258,1713865838567,-500.0,0.00021917,2]
[323277260,1713865838576,-500.0,0.00021917,2]
[323277262,1713865838585,-500.0,0.00021917,2]
[323277264,1713865838595,-679.1,0.00021917,2]
[323277265,1713865838603,-500.0,0.00021917,2]
[323277267,1713865838614,-1148.57,0.00021917,2]
[323277269,1713865838622,-500.0,0.00021917,2]
[323277271,1713865838632,-500.6169929,0.00021917,2]
[323277273,1713865838642,-659.73,0.00021917,2]
[323277276,1713865838653,-500.0,0.00021917,2]
[323277278,1713865838664,-151.0,0.00021917,2]
[323277279,1713865838673,-500.0,0.00021917,2]
[323277281,1713865838682,-585.91338873,0.00021917,2]
[323277283,1713865838692,-500.0,0.00021917,2]
[323277285,1713865838701,-500.0,0.00021917,2]
[323277287,1713865838710,-500.0,0.00021917,2]
[323277289,1713865838719,-500.0,0.00021917,2]
[323277291,1713865838728,-500.0,0.00021917,2]
[323277293,1713865838737,-500.0,0.00021917,2]
[323277307,1713865838852,-701.94,0.00021917,2]
[323277309,1713865838862,-500.0,0.00021917,2]
[323277311,1713865838871,-500.0,0.00021917,2]
[323277313,1713865838881,-500.0,0.00021917,2]
[323277315,1713865838894,-500.0,0.00021917,2]
[323277317,1713865838903,-1075.7,0.00021917,2]
[323277319,1713865838911,-151.0,0.00021917,2]
[323277321,1713865838921,-500.0,0.00021917,2]
[323277323,1713865838930,-500.0,0.00021917,2]
[323277325,1713865838941,-500.0,0.00021917,2]
[323277327,1713865838951,-500.0,0.00021917,2]
[323277329,1713865838961,-500.0,0.00021917,2]
[323277331,1713865838971,-500.0,0.00021917,2]
[323277333,1713865838979,-500.0,0.00021917,2]
[323277335,1713865838989,-647.46,0.00021917,2]
[323277337,1713865838998,-500.0,0.00021917,2]
[323277339,1713865839006,-661.69,0.00021917,2]
[323277341,1713865839015,-500.0,0.00021917,2]
[323277342,1713865839025,-562.44,0.00021917,2]
[323277344,1713865839034,-500.0,0.00021917,2]
[323277347,1713865839043,-500.0,0.00021917,2]
[323277348,1713865839052,-500.0,0.00021917,2]
[323277350,1713865839062,-500.0,0.00021917,2]
[323277352,1713865839071,-507.17171376,0.00021917,2]
[323277354,1713865839080,-500.0,0.00021917,2]
[323277356,1713865839089,-607.17,0.00021917,2]
[323277358,1713865839098,-501.68120795,0.00021917,2]
[323277360,1713865839107,-500.0,0.00021917,2]
[323277362,1713865839116,-500.0,0.00021917,2]
[323277365,1713865839126,-500.0,0.00021917,2]
[323277366,1713865839135,-248.51,0.00021917,2]
[323277368,1713865839145,-439.43905108,0.00021917,2]
[323277370,1713865839154,-500.0,0.00021917,2]
[323277372,1713865839163,-504.79379723,0.00021917,2]
[323277374,1713865839172,-500.0,0.00021917,2]
[323277377,1713865839182,-659.18,0.00021917,2]
[323277379,1713865839192,-500.0,0.00021917,2]
[323277381,1713865839201,-500.0,0.00021917,2]
[323277383,1713865839210,-500.0,0.00021917,2]
[323277385,1713865839219,-500.0,0.00021917,2]
[323277387,1713865839228,-741.73,0.00021917,2]
[323277388,1713865839238,-500.0,0.00021917,2]
[323277391,1713865839247,-500.0,0.00021917,2]
[323277393,1713865839257,-500.00000046,0.00021917,2]
[323277394,1713865839266,-500.0,0.00021917,2]
[323277397,1713865839275,-1062.04,0.00021917,2]
[323277398,1713865839285,-500.0,0.00021917,2]
[323277401,1713865839295,-729.59,0.00021917,2]
[323277402,1713865839304,-500.0,0.00021917,2]
[323277405,1713865839313,-500.0,0.00021917,2]
[323277408,1713865839323,-1451.87,0.00021917,2]
[323277410,1713865839332,-500.0,0.00021917,2]
[323277412,1713865839342,-1877.84,0.00021917,2]
[323277413,1713865839351,-500.0,0.00021917,2]
[323277415,1713865839360,-500.0,0.00021917,2]
[323277417,1713865839368,-500.0,0.00021917,2]
[323277419,1713865839378,-511.08,0.00021917,2]
[323277421,1713865839387,-200.96345925,0.00021917,2]
[323277423,1713865839396,-500.0,0.00021917,2]
[323277425,1713865839404,-500.0,0.00021917,2]
[323277427,1713865839413,-500.0,0.00021917,2]
[323277429,1713865839422,-500.0,0.00021917,2]
[323277431,1713865839432,-500.0,0.00021917,2]
[323277433,1713865839442,-500.0,0.00021917,2]
[323277435,1713865839451,-322.812041,0.00021917,2]
[323277437,1713865839460,-500.0,0.00021917,2]
[323277439,1713865839469,-398.72465794,0.00021917,2]
[323277442,1713865839478,-322.812041,0.00021917,2]
[323277444,1713865839487,-500.0,0.00021917,2]
[323277445,1713865839496,-500.0,0.00021917,2]
[323277447,1713865839505,-322.812041,0.00021917,2]
[323277449,1713865839514,-322.812041,0.00021917,2]
[323277451,1713865839523,-622.66,0.00021917,2]
[323277453,1713865839533,-1060.63,0.00021917,2]
[323277455,1713865839542,-500.0,0.00021917,2]
[323277458,1713865839551,-500.0,0.00021917,2]
[323277461,1713865839560,-500.0,0.00021917,2]
[323277464,1713865839569,-500.0,0.00021917,2]
[323277466,1713865839578,-500.0,0.00021917,2]
[323277468,1713865839587,-500.0,0.00021917,2]
[323277470,1713865839596,-500.0,0.00021917,2]
[323277472,1713865839605,-500.0,0.00021917,2]
[323277475,1713865839614,-500.0,0.00021917,2]
[323277477,1713865839623,-500.0,0.00021917,2]
[323277479,1713865839632,-500.0,0.00021917,2]
[323277481,1713865839642,-500.0,0.00021917,2]
[323277482,1713865839650,-500.0,0.00021917,2]
[323277484,1713865839659,-500.0,0.00021917,2]
[323277486,1713865839669,-500.0,0.00021917,2]
[323277488,1713865839677,-500.0,0.00021917,2]
[323277490,1713865839687,-500.0,0.00021917,2]
[323277493,1713865839696,-500.0,0.00021917,2]
[323277494,1713865839705,-240.19124394,0.00021917,2]
[323277496,1713865839714,-500.0,0.00021917,2]
[323277498,1713865839723,-504.19355796,0.00021917,2]
[323277501,1713865839732,-500.0,0.00021917,2]
[323277503,1713865839741,-590.11,0.00021917,2]
[323277504,1713865839751,-525.97516378,0.00021917,2]
[323277506,1713865839761,-500.0,0.00021917,2]
[323277508,1713865839770,-513.06151119,0.00021917,2]
[323277510,1713865839779,-500.0,0.00021917,2]
[323277513,1713865839788,-504.22410649,0.00021917,2]
[323277514,1713865839797,-500.0,0.00021917,2]
[323277516,1713865839807,-151.0,0.00021917,2]
[323277518,1713865839818,-151.0,0.00021917,2]
[323277520,1713865839828,-151.0,0.00021917,2]
[323277522,1713865839837,-500.0,0.00021917,2]
[323277524,1713865839846,-500.0,0.00021917,2]
[323277526,1713865839857,-500.0,0.00021917,2]
[323277528,1713865839866,-500.0,0.00021917,2]
[323277530,1713865839875,-500.0,0.00021917,2]
[323277532,1713865839884,-22785.48,0.00021917,2]
[323277534,1713865839893,-899.75,0.00021917,2]
[323277536,1713865839902,-500.0,0.00021917,2]
[323277538,1713865839911,-345.993572,0.00021917,2]
[323277540,1713865839920,-345.993572,0.00021917,2]
[323277542,1713865839929,-935.633361,0.00021917,2]
[323277544,1713865839940,-200.38370404,0.00021917,2]
[323277546,1713865839948,-935.633361,0.00021917,2]
[323277548,1713865839957,-500.0,0.00021917,2]
[323277550,1713865839966,-935.633361,0.00021917,2]
[323277552,1713865839975,-345.993572,0.00021917,2]
[323277554,1713865839984,-500.0,0.00021917,2]
[323277556,1713865839994,-345.993572,0.00021917,2]
[323277558,1713865840003,-935.633361,0.00021917,2]
[323277560,1713865840012,-935.633361,0.00021917,2]
[323277562,1713865840021,-935.633361,0.00021917,2]
[323277564,1713865840029,-500.0,0.00021917,2]
[323277566,1713865840041,-527.24947871,0.00021917,2]
[323277569,1713865840050,-500.0,0.00021917,2]
[323277570,1713865840059,-500.0,0.00021917,2]
[323277572,1713865840069,-500.0,0.00021917,2]
[323277574,1713865840078,-1567.9,0.00021917,2]
[323277576,1713865840088,-500.0,0.00021917,2]
[323277579,1713865840097,-500.0,0.00021917,2]
[323277581,1713865840107,-500.0,0.00021917,2]
[323277583,1713865840116,-500.0,0.00021917,2]
[323277585,1713865840126,-522.87,0.00021917,2]
[323277586,1713865840135,-1328.56,0.00021917,2]
[323277588,1713865840145,-1553.85,0.00021917,2]
[323277591,1713865840154,-500.0,0.00021917,2]
[323277592,1713865840163,-2127.08,0.00021917,2]
[323277595,1713865840174,-151.0,0.00021917,2]
[323277596,1713865840183,-151.0,0.00021917,2]
[323277599,1713865840194,-500.0,0.00021917,2]
[323277601,1713865840203,-151.0,0.00021917,2]
[323277603,1713865840212,-151.0,0.00021917,2]
[323277605,1713865840221,-1177.770901,0.00021917,2]
[323277607,1713865840231,-1177.770901,0.00021917,2]
[323277608,1713865840241,-500.0,0.00021917,2]
[323277611,1713865840251,-1177.770901,0.00021917,2]
[323277613,1713865840260,-500.0,0.00021917,2]
[323277615,1713865840269,-1177.770901,0.00021917,2]
[323277617,1713865840279,-1177.770901,0.00021917,2]
[323277618,1713865840288,-1177.770901,0.00021917,2]
[323277620,1713865840298,-500.0,0.00021917,2]
[323277623,1713865840307,-500.0,0.00021917,2]
[323277624,1713865840317,-500.0,0.00021917,2]
[323277627,1713865840326,-500.0,0.00021917,2]
[323277628,1713865840335,-385.08909183,0.00021917,2]
[323277630,1713865840345,-500.0,0.00021917,2]
[323277633,1713865840354,-564.43,0.00021917,2]
[323277634,1713865840364,-173.042897,0.00021917,2]
[323277636,1713865840373,-2147.01,0.00021917,2]
[323277638,1713865840382,-596.21248374,0.00021917,2]
[323277640,1713865840391,-388.89093978,0.00021917,2]
[323277642,1713865840400,-2292.82,0.00021917,2]
[323277644,1713865840409,-500.0,0.00021917,2]
[323277646,1713865840418,-500.0,0.00021917,2]
[323277648,1713865840427,-1621.03,0.00021917,2]
[323277650,1713865840438,-151.0,0.00021917,2]
[323277652,1713865840447,-151.0,0.00021917,2]
[323277654,1713865840456,-151.0,0.00021917,2]
[323277657,1713865840465,-603.87,0.00021917,2]
[323277659,1713865840475,-500.0,0.00021917,2]
[323277660,1713865840484,-502.41307117,0.00021917,2]
[323277662,1713865840493,-500.0,0.00021917,2]
[323277664,1713865840503,-500.0,0.00021917,2]
[323277667,1713865840512,-500.0,0.00021917,2]
[323277668,1713865840521,-500.0,0.00021917,2]
[323277670,1713865840530,-151.0,0.00021917,2]
[323277672,1713865840539,-151.0,0.00021917,2]
[323277674,1713865840548,-151.0,0.00021917,2]
[323277676,1713865840557,-500.0,0.00021917,2]
[323277678,1713865840566,-500.0,0.00021917,2]
[323277680,1713865840575,-500.0,0.00021917,2]
[323277682,1713865840585,-500.0,0.00021917,2]
[323277684,1713865840595,-500.0,0.00021917,2]
[323277686,1713865840604,-209.21,0.00021917,2]
[323277688,1713865840613,-1618.55,0.00021917,2]
[323277690,1713865840622,-500.0,0.00021917,2]
[323277692,1713865840632,-440.67037134,0.00021917,2]
[323277694,1713865840641,-778.28,0.00021917,2]
[323277696,1713865840650,-500.0,0.00021917,2]
[323277698,1713865840660,-500.0,0.00021917,2]
[323277700,1713865840669,-858.8,0.00021917,2]
[323277702,1713865840679,-362.14182298,0.00021917,2]
[323277704,1713865840688,-500.0,0.00021917,2]
[323277706,1713865840697,-1777.93,0.00021917,2]
[323277708,1713865840706,-151.0,0.00021917,2]
[323277710,1713865840716,-666.9,0.00021917,2]
[323277712,1713865840725,-3528.51,0.00021917,2]
[323277714,1713865840734,-500.0,0.00021917,2]
[323277716,1713865840743,-500.0,0.00021917,2]
[323277718,1713865840752,-630.70824198,0.00021917,2]
[323277720,1713865840761,-500.0,0.00021917,2]
[323277722,1713865840770,-151.0,0.00021917,2]
[323277724,1713865840779,-151.0,0.00021917,2]
[323277726,1713865840788,-500.96540924,0.00021917,2]
[323277728,1713865840797,-151.0,0.00021917,2]
[323277730,1713865840809,-810.46,0.00021917,2]
[323277732,1713865840819,-504.63413785,0.00021917,2]
[323277734,1713865840828,-151.0,0.00021917,2]
[323277736,1713865840837,-151.0,0.00021917,2]
[323277738,1713865840847,-291.064263,0.00021917,2]
[323277740,1713865840857,-500.0,0.00021917,2]
[323277741,1713865840866,-500.0,0.00021917,2]
[323277743,1713865840875,-500.0,0.00021917,2]
[323277745,1713865840885,-500.0,0.00021917,2]
[323277747,1713865840894,-500.0,0.00021917,2]
[323277760,1713865840995,-1384.5,0.00021917,2]
[323277762,1713865841004,-314.20127531,0.00021917,2]
[323277764,1713865841013,-500.0,0.00021917,2]
[323277766,1713865841022,-501.81796725,0.00021917,2]
[323277768,1713865841030,-507.67965804,0.00021917,2]
[323277770,1713865841039,-500.0,0.00021917,2]
[323277771,1713865841048,-500.0,0.00021917,2]
[323277773,1713865841058,-500.0,0.00021917,2]
[323277775,1713865841066,-500.0,0.00021917,2]
[323277777,1713865841075,-500.0,0.00021917,2]
[323277779,1713865841084,-500.0,0.00021917,2]
[323277781,1713865841093,-500.0,0.00021917,2]
[323277783,1713865841102,-500.0,0.00021917,2]
[323277785,1713865841111,-500.0,0.00021917,2]
[323277787,1713865841120,-500.0,0.00021917,2]
[323277789,1713865841129,-503.52489198,0.00021917,2]
[323277791,1713865841138,-1437.25,0.00021917,2]
[323277793,1713865841146,-500.0,0.00021917,2]
[323277795,1713865841159,-503.48021719,0.00021917,2]
[323277798,1713865841168,-683.82,0.00021917,2]
[323277799,1713865841177,-500.0,0.00021917,2]
[323277802,1713865841187,-1380.34,0.00021917,2]
[323277803,1713865841197,-2040.64,0.00021917,2]
[323277806,1713865841206,-151.0,0.00021918,2]
[323277807,1713865841215,-151.0,0.00021991,2]
[323277809,1713865841224,-1239.758843,0.00021991,2]
[323277810,1713865841234,-151.0,0.00021991,2]
[323277811,1713865841243,-322.812041,0.00021991,2]
[323277812,1713865841252,-322.812041,0.00021991,2]
[323277813,1713865841262,-345.993572,0.00021991,2]
[323277814,1713865841271,-345.993572,0.00021991,2]
[323277815,1713865841281,-151.0,0.00021991,2]
[323277816,1713865841290,-218.507235,0.00021991,2]
[323277817,1713865841299,-159.06202442,0.00022,2]
[323277818,1713865841309,-151.0,0.00022027,2]
[323277819,1713865841318,-306.8743096,0.00022027,2]
[323277820,1713865841327,-153.0,0.00022027,2]
[323277821,1713865841336,-151.0,0.00022091,2]
[323277822,1713865841345,-577.274938,0.00022091,2]
[323277823,1713865841355,-577.274938,0.00022091,2]
[323277824,1713865841364,-1000.0,0.000221,2]
[323277825,1713865841374,-254.0,0.0002215,2]
[323277826,1713865841383,-500.0,0.00022191,2]
[323277827,1713865841393,-1297.58,0.00022191,2]
[323277828,1713865841402,-151.0,0.00022191,2]
[323277829,1713865841411,-500.0,0.00022191,2]
[323277830,1713865841420,-500.0,0.00022191,2]
[323277831,1713865841430,-500.0,0.00022191,2]
[323277833,1713865841439,-1185.11,0.00022191,2]
[323277835,1713865841448,-500.0,0.00022191,2]
[323277837,1713865841457,-225.99638695,0.00022191,2]
[323277839,1713865841466,-500.0,0.00022191,2]
[323277841,1713865841475,-500.0,0.00022191,2]
[323277843,1713865841484,-500.0,0.00022191,2]
[323277845,1713865841494,-500.0,0.00022191,2]
[323277847,1713865841503,-500.0,0.00022191,2]
[323277849,1713865841512,-493.9306777,0.00022191,2]
[323277981,1713865842701,-24900.0,0.00020936,2]
[323277983,1713865842711,-544.34,0.00021907,3]
[323277985,1713865842719,-500.0,0.00021917,2]
[323277987,1713865842729,-6.0693223,0.00022191,2]
[323277989,1713865842738,-500.0,0.00022191,2]
[323277991,1713865842747,-577.274938,0.00022191,2]
[323277993,1713865842757,-577.274938,0.00022191,2]
[323277996,1713865842766,-500.0,0.00022191,2]
[323277997,1713865842775,-500.0,0.00022191,2]
[323278000,1713865842785,-500.0,0.00022191,2]
[323278002,1713865842794,-500.0,0.00022191,2]
[323278005,1713865842806,-500.0,0.00022191,2]
[323278007,1713865842816,-500.0,0.00022191,2]
[323278009,1713865842826,-500.0,0.00022191,2]
[323278011,1713865842835,-500.0,0.00022191,2]
[323278013,1713865842844,-151.0,0.00022191,2]
[323278014,1713865842856,-151.0,0.00022191,2]
[323278017,1713865842866,-500.0,0.00022191,2]
[323278018,1713865842875,-500.0,0.00022191,2]
[323278021,1713865842884,-610.16,0.00022191,2]
[323278023,1713865842893,-500.0,0.00022191,2]
[323278024,1713865842902,-500.0,0.00022191,2]
[323278026,1713865842912,-500.0,0.00022191,2]
[323278029,1713865842921,-679.1,0.00022191,2]
[323278031,1713865842930,-1148.57,0.00022191,2]
[323278032,1713865842939,-500.0,0.00022191,2]
[323278034,1713865842948,-598.17357222,0.00022191,2]
[323278317,1713865845932,-277.98874346,0.0002,2]
[323278319,1713865845942,-1983.55875627,0.00021,2]
[323278490,1713866077695,243.0,0.00012,30]
[323278496,1713866130528,19184.99388325,0.00012,2]
[323278497,1713866150533,19184.99388325,0.00012,2]
[323278499,1713866166520,19184.99388325,0.00012,2]
[323278500,1713866182570,19184.99388325,0.00012,2]
[323278501,1713866198538,19184.99388325,0.00012,2]
[323278502,1713866216530,19184.99388325,0.00012,2]
[323278503,1713866238538,19184.99388325,0.00012,2]
[323278504,1713866258550,19184.99388325,0.00012,2]
[323278507,1713866276540,19184.99388325,0.00012,2]
[323278509,1713866300547,2262.627076,0.00012,2]
[323278511,1713866451580,-709.86708,0.00013852,2]
[323278512,1713866451608,-539.84959505,0.00014773,2]
[323278513,1713866451634,-673.55445774,0.00014773,2]
[323278514,1713866451659,-362.01061268,0.00014773,2]
[323278515,1713866451684,-2587.76784421,0.00014773,2]
[323278516,1713866451712,-157.76351589,0.00014774,2]
[323278517,1713866451737,-1550.76359454,0.00014774,2]
[323278518,1713866451762,-154.82968734,0.00014774,2]
[323278519,1713866451787,-474.79230604,0.00014775,2]
[323278520,1713866451811,-247.22010741,0.00014775,2]
[323278521,1713866451836,-154.82968734,0.00014775,2]
[323278522,1713866451861,-154.82968734,0.00014776,2]
[323278523,1713866451885,-154.82968734,0.00014776,2]
[323278524,1713866451909,-408.87824963,0.00014777,2]
[323278525,1713866451935,-154.82968734,0.00014777,2]
[323278526,1713866462645,212.06825711,0.00014777,2]
[323278527,1713866473379,300.0,0.00014777,2]
[323278530,1713866524382,519.95768087,0.00014777,2]
[323278531,1713866529844,474.79230604,0.00014777,2]
[323278532,1713866540106,6.56595609,0.00014777,2]
[323278533,1713866731135,-212.06825711,0.00013783,2]
[323278534,1713866731155,-2180.99941739,0.00013783,2]
[323278538,1713866825162,-442.97514304,0.00013645,2]
[323278539,1713866825183,-166.58261693,0.00013683,2]
[323278540,1713866825204,-442.97514304,0.00013783,2]
[323278541,1713866825225,-344.43188625,0.00013784,2]
[323278542,1713866825248,-344.43188625,0.00013784,2]
[323278543,1713866825269,-1268.0251528,0.00013925,2]
[323278544,1713866825290,-172.3190033,0.0001492,2]
[323278545,1713866825310,-304.17910524,0.0001492,2]
[323278546,1713866825336,-158.98533641,0.0001492,2]
[323278547,1713866825357,-305.02639978,0.0001492,2]
[323278548,1713866825377,-155.02148443,0.0001492,2]
[323278549,1713866825398,-300.0,0.00014921,2]
[323278550,1713866825419,-300.0,0.00014921,2]
[323278551,1713866825439,-200.0,0.00014921,2]
[323278552,1713866825459,-156.3171088,0.00014921,2]
[323278553,1713866825479,-155.35152652,0.00014921,2]
[323278554,1713866825499,-199.80945329,0.00014922,2]
[323278555,1713866825519,-72560.09039098,0.00014922,2]
[323278556,1713866825540,-87621.90441785,0.00014923,2]
[323278557,1713866826098,-623.77275616,0.00013644,2]
[323278558,1713866826118,-239.7022471,0.0001492,2]
[323278559,1713866826138,-24713.36188024,0.00014923,2]
[323278560,1713866852084,-157.76351589,0.0001477,2]
[323278561,1713866852105,-300.05828581,0.00014771,2]
[323278562,1713866852124,-300.05828581,0.0001492,2]
[323278563,1713866852145,-154.95418533,0.0001492,2]
[323278564,1713866852167,-302.89784793,0.0001492,2]
[323278565,1713866852187,-154.99044524,0.00014922,2]
[323278566,1713866852208,-291.9508022,0.00014922,2]
[323278567,1713866852229,-1524.72065947,0.00014923,2]
[323278568,1713866852249,-672.7681383,0.00014925,2]
[323278569,1713866852269,-239.11716209,0.00014925,2]
[323278570,1713866852288,-362.01061268,0.00014925,2]
[323278571,1713866852312,-410.30394386,0.00014925,2]
[323278572,1713866852335,-154.86062236,0.00014925,2]
[323278573,1713866852356,-2587.76784421,0.00014925,2]
[323278574,1713866852376,-364.16778964,0.00014925,2]
[323278575,1713866852396,-155.67711311,0.00014925,2]
[323278576,1713866852415,-247.22010741,0.00014925,2]
[323278577,1713866852436,-251.10283876,0.00014925,2]
[323278578,1713866852455,-210.96506684,0.00014925,2]
[323278579,1713866852475,-348.18573427,0.00014925,2]
[323278580,1713866852495,-300.0,0.00014925,2]
[323278581,1713866852515,-1676.83616858,0.00014925,2]
[323278582,1713866852537,-4878.95208794,0.00014925,2]
[323278583,1713866852560,-2623.97456043,0.00014925,2]
[323278584,1713866852580,-166.58261693,0.00014926,2]
[323278585,1713866852600,-439.2104821,0.00014927,2]
[323278586,1713866852620,-162.75527933,0.00014927,2]
[323278587,1713866852641,-14890.61271986,0.00014927,2]
[323278588,1713866852662,-24900.0,0.00014928,2]
[323278589,1713866852683,-12610.71640316,0.00016116,2]
[323278590,1713866852703,-166.58261693,0.0001617,2]
[323278591,1713866852724,-420.0,0.00016332,2]
[323278592,1713866852745,-420.0,0.00016414,2]
[323278593,1713866852765,-883.78313678,0.00016828,2]
[323278594,1713866852786,-1490.32391025,0.00017001,2]
[323278595,1713866852807,-154.82968734,0.00017005,2]
[323278596,1713866852826,-238.33445638,0.00017006,2]
[323278597,1713866852847,-166.58261693,0.00017413,2]
[323278598,1713866852867,-587.0,0.00017876,2]
[323278599,1713866852887,-580.7948807,0.00018,2]
[323278600,1713866852909,-202.61549755,0.00018,2]
[323278601,1713866852929,-611.736492,0.00018011,2]
[323278602,1713866852950,-587.0,0.00018055,2]
[323278603,1713866852970,-603.3578092,0.000185,2]
[323278604,1713866852993,-166.58261693,0.00018657,2]
[323278605,1713866853013,-200.92339208,0.00018697,2]
[323278606,1713866853036,-867.81408602,0.00018798,2]
[323278607,1713866853059,-188.81822926,0.00018798,2]
[323278608,1713866853081,-1158.3410573,0.00018798,2]
[323278609,1713866853100,-243.44964094,0.00018895,2]
[323278610,1713866853121,-853.24963095,0.00018895,2]
[323278611,1713866853141,-656.98368851,0.00018895,2]
[323278612,1713866853164,-157.19474891,0.00018895,2]
[323278613,1713866853184,-166.6482812,0.00018895,2]
[323278614,1713866853205,-701.94771615,0.00018895,2]
[323278615,1713866853225,-525.93861077,0.00018895,2]
[323278616,1713866853247,-301.08341595,0.00018895,2]
[323278617,1713866853269,-154.95429644,0.00018895,2]
[323278618,1713866853290,-156.21791875,0.00018895,2]
[323278619,1713866853310,-250.80293331,0.00018895,2]
[323278620,1713866853330,-158.16815901,0.00018895,2]
[323278621,1713866853351,-206.88595551,0.00018895,2]
[323278622,1713866853370,-157.68285507,0.00018895,2]
[323278623,1713866853389,-214.55189169,0.00018895,2]
[323278624,1713866853409,-283.38557575,0.00018896,2]
[323278625,1713866853430,-1364.66318969,0.00018896,7]
[323278626,1713866853451,-240.47928456,0.00018898,2]
[323278627,1713866853472,-189.19295912,0.0001897,2]
[323278628,1713866853492,-200.0,0.00019,2]
[323278629,1713866853512,-173.81104632,0.00019,2]
[323278630,1713866853531,-615.75933218,0.00019,2]
[323278631,1713866853553,-500.0,0.00019178,2]
[323278632,1713866853572,-500.0,0.00019178,2]
[323278633,1713866853591,-500.0,0.00019178,2]
[323278634,1713866853611,-500.0,0.00019178,2]
[323278635,1713866853631,-500.0,0.00019178,2]
[323278636,1713866853653,-585.96329859,0.00019178,2]
[323278637,1713866853776,-500.0,0.00019178,2]
[323278638,1713866853797,-500.0,0.00019178,2]
[323278639,1713866853817,-500.0,0.00019178,2]
[323278640,1713866853839,-500.0,0.00019178,2]
[323278641,1713866853859,-500.0,0.00019178,2]
[323278642,1713866853879,-500.0,0.00019178,2]
[323278643,1713866853899,-500.0,0.00019178,2]
[323278644,1713866853919,-398.17393315,0.00019178,2]
[323278645,1713866853938,-500.0,0.00019178,2]
[323278646,1713866853958,-239.41752135,0.00019178,2]
[323278647,1713866853978,-500.0,0.00019178,2]
[323278648,1713866853998,-500.0,0.00019178,2]
[323278649,1713866854018,-500.0,0.00019178,2]
[323278650,1713866854037,-500.0,0.00019178,2]